Cogmind - Beta 11 X7 @@@ ROGUE MODE // 2021.10.05 @ 01:23:08 Player: Runia Result: Self-destructed Performance ------------- Evolutions (1) 500 Regions Visited (5) 1000 Robots Destroyed (86) 430 Value Destroyed (1970) 1970 Prototype IDs (28) 560 Alien Tech Used (0) 0 Bonus (227) 227 TOTAL SCORE: 4687 Bonus ------- High Alert Combat Kills 171 Follower Combat Kills 56 Cogmind --------- Core Integrity 129/400 Matter 300/300 Energy 280/280 System Corruption 0% Temperature Cool (0) Movement Treading (260) Ox1 Location -9/Exiles Parts ------- > --- POWER (1) -------- Cooled Ion Engine > --- PROPULSION (2) --- Light Treads Light Treads > --- UTILITY (3) ------ Improved Heat Sink Large Storage Unit Medium Armor Plating > --- WEAPON (3) ------- Heavy Assault Rifle Gauss Rifle Plasma Cutter > --- INVENTORY (15) --- Heavy Ion Engine Light Treads Improved Treads Improved Treads Wheel Medium Armor Plating Medium Armor Plating Advanced Beam Cannon Heavy Assault Rifle Heavy Assault Rifle Heavy Assault Rifle Autogun Autogun Gauss Rifle Rocket Launcher Peak State ------------ > --- POWER ------------ Cooled Ion Engine > --- PROPULSION ------- Light Treads Light Treads > --- UTILITY ---------- Improved Heat Sink Large Storage Unit Medium Armor Plating > --- WEAPON ----------- Heavy Assault Rifle Gauss Rifle Plasma Cutter > --- INVENTORY -------- Heavy Ion Engine Light Treads Improved Treads Improved Treads Wheel Medium Armor Plating Medium Armor Plating Advanced Beam Cannon Heavy Assault Rifle Heavy Assault Rifle Heavy Assault Rifle Autogun Autogun Gauss Rifle Rocket Launcher [Rating: 22] Favorites ----------- Power Cooled Ion Engine Engine Cooled Ion Engine Propulsion Light Treads Treads Light Treads Leg Aluminum Leg Utility Large Storage Unit Device Improved Heat Sink Storage Large Storage Unit Processor Targeting Computer Protection Medium Armor Plating Weapon Autogun Energy Gun Improved Medium Laser Energy Cannon Advanced Beam Cannon Ballistic Gun Autogun Launcher Rocket Launcher Special Weapon Plasma Cutter Build | -11 -10 -10 -9 -9 -9 ------- Run | Scr Mat Min Mat Min Exi Slots Evolved 2 | . . . 2 . . Power . | . . . . . . Propulsion . | . . . . . . Utility 1 | . . . 1 . . Weapon 1 | . . . 1 . . Parts Attached 66 | . 17 1 44 . 4 Power 9 | . 4 . 5 . . Engine 9 | . 4 . 5 . . Core . | . . . . . . Reactor . | . . . . . . Propulsion 18 | . 6 . 12 . . Treads 18 | . 6 . 12 . . Leg . | . . . . . . Wheel . | . . . . . . Hover . | . . . . . . Flight . | . . . . . . Utility 15 | . 3 1 10 . 1 Device 2 | . 1 . 1 . . Storage 2 | . 1 . . . 1 Processor 1 | . 1 . . . . Hackware . | . . . . . . Protection 10 | . . 1 9 . . Artifact . | . . . . . . Weapon 24 | . 4 . 17 . 3 Energy Gun 3 | . . . 3 . . Energy Cannon 1 | . . . 1 . . Ballistic Gun 18 | . 4 . 12 . 2 Ballistic Cannon . | . . . . . . Launcher 1 | . . . 1 . . Special Weapon 1 | . . . . . 1 Impact Weapon . | . . . . . . Slashing Weapon . | . . . . . . Piercing Weapon . | . . . . . . Special Melee Weapon . | . . . . . . Unidentified Prototypes 3 | . . . 3 . . Parts Lost 5 | . 2 . 3 . . Power 1 | . 1 . . . . Propulsion 1 | . . . 1 . . Utility 1 | . . . 1 . . Weapon 2 | . 1 . 1 . . Highest Loss Streak 1 | . 1 . 1 . . Average Slot Usage (%) 99 | . 98 100 99 100 100 Engine 11 | . 13 14 11 11 11 Treads 23 | . 27 28 22 22 22 Device 5 | . 1 . 5 11 11 Storage 11 | . 14 14 11 11 11 Processor 2 | . 10 4 . . . Protection 11 | . . 9 16 11 11 Energy Gun 5 | . . . 8 11 3 Ballistic Gun 24 | . 28 28 22 22 22 Special Weapon 1 | . . . . . 7 Naked Turns . | . . . . . . Heaviest Build 45 | 11 28 31 45 45 45 Greatest Support 40 | 20 40 40 40 40 40 Greatest Overweight (x) 1 | . . . 1 1 1 Average Overweight (x) . | . . . . 1 1 Largest Inventory Capacity 15 | 8 15 15 15 15 15 Average Capacity 13 | 8 8 15 15 15 15 Most Carried 15 | 5 10 10 15 15 15 Average Carried 12 | 5 5 9 14 15 14 Final Capacity 15 | 8 15 15 15 15 15 Final Carried 15 | 4 10 9 15 15 15 Class Distribution -------------------- 52% | Tank 29% | Mutant 15% | Scavenger-Mutant Dominant Class ---------------- Mutant | -10/Materials Mutant | -10/Mines Tank | -9/Materials Tank | -9/Mines Scavenger-Mutant | -9/Exiles Resources | -11 -10 -10 -9 -9 -9 ----------- Run | Scr Mat Min Mat Min Exi Matter Collected 1962 | 190 445 109 1045 109 64 Remotely . | . . . . . . Salvage Created 3309 | . 567 186 2105 159 292 Parts 212 | . 35 12 137 6 22 Haulers Intercepted 8 | . 2 . 6 . . Recyclers Shooed 6 | . 2 1 3 . . Parts Field Recycled . | . . . . . . Retrieved Matter . | . . . . . . Parts Self-Destructed . | . . . . . . Prevented . | . . . . . . Kills | -11 -10 -10 -9 -9 -9 ------- Run | Scr Mat Min Mat Min Exi Combat Hostiles Destroyed 60 | . 9 4 43 2 2 Guns 51 | . 9 4 36 2 . Cannons 5 | . . . 3 . 2 AOE 4 | . . . 4 . . Classes Destroyed 13 | . 5 1 6 . 1 Worker 5 | . 1 . 4 . . Builder 1 | . . . 1 . . Hauler 8 | . 2 . 6 . . Recycler 7 | . 1 1 4 1 . Operator 1 | . . . 1 . . Watcher 4 | . 1 . 3 . . Swarmer 20 | . . 3 17 . . Grunt 26 | . 9 1 14 2 . Brawler 1 | . . . 1 . . Duelist 1 | . . . 1 . . Protector 1 | . . . 1 . . Sentry 9 | . . . 9 . . Hunter 2 | . . . . . 2 Best Kill Streak 8 | . 3 3 8 2 1 Combat Bots Only 5 | . 2 3 5 2 1 Max Kills in Single Turn 2 | . 1 1 2 1 1 Gunslinging 1 | . . . 1 . . Exploded 2 | . . . 2 . . Melee . | . . . . . . Uniques/NPCs Destroyed . | . . . . . . Combat | -11 -10 -10 -9 -9 -9 -------- Run | Scr Mat Min Mat Min Exi Damage Taken 2911 | . 821 89 1984 17 . Core 465 | . 177 17 271 . . Absorbed by Shields . | . . . . . . Core Remaining (%) 61 | 100 . 22 . . . Volleys Fired 271 | . 73 11 121 4 62 Largest 3 | . 2 2 3 3 2 Hottest 108 | . 40 40 108 102 56 Shots Fired 582 | . 145 22 340 12 63 Gun 503 | . 145 22 314 12 10 Cannon 23 | . . . 23 . . Launcher 3 | . . . 3 . . Special 53 | . . . . . 53 Kinetic 416 | . 145 22 235 8 6 Thermal 163 | . . . 102 4 57 Explosive 3 | . . . 3 . . Electromagnetic . | . . . . . . Robot Hit Streak 15 | . 11 10 13 4 15 Robot Miss Streak 6 | . 5 2 5 2 6 Penetration Max . | . . . . . . Secondary Targets 6 | . 1 . 4 1 . Max Gunslinging Chain 1 | . 1 . 1 1 . Shots Hit Robots 365 | . 98 16 204 3 44 Core Hits 152 | . 32 8 93 3 16 Critical Kills 1 | . . . 1 . . Critical Parts Destroyed 4 | . . . 3 . 1 Critical Strikes 14 | . . . 12 . 2 Burn 7 | . . . 7 . . Destroy 6 | . . . 5 . 1 Sever 1 | . . . . . 1 Melee Attacks . | . . . . . . Impact . | . . . . . . Slashing . | . . . . . . Piercing . | . . . . . . Sneak Attacks . | . . . . . . Combat Hostiles . | . . . . . . Follow-up Attacks . | . . . . . . Damage Inflicted 5237 | . 1019 160 3472 50 536 Guns 3956 | . 1019 160 2602 50 125 Cannons 346 | . . . 346 . . Explosions 524 | . . . 524 . . Melee . | . . . . . . Ramming . | . . . . . . Kinetic 3069 | . 1019 160 1765 50 75 Thermal 1644 | . . . 1183 . 461 Explosive 524 | . . . 524 . . Electromagnetic . | . . . . . . Impact . | . . . . . . Slashing . | . . . . . . Piercing . | . . . . . . Highest Corruption 3 | . 3 3 . . . Average Corruption 2 | . 2 3 . . . Corruption Purged . | . . . . . . Effects 16 | . 10 6 . . . Message Errors 3 | . 2 1 . . . Matter Fused 6 | . 3 3 . . . Energy Discharges 6 | . 4 2 . . . Data Loss (minor) 1 | . 1 . . . . Overload Shots . | . . . . . . Overflow Damage . | . . . . . . Projectiles . | . . . . . . Explosions . | . . . . . . Melee . | . . . . . . Knockbacks . | . . . . . . Impact . | . . . . . . Kinetic . | . . . . . . Secondary . | . . . . . . Self-Inflicted Damage 79 | . . . 79 . . Shots 1 | . . . 1 . . Rammed . | . . . . . . Targets Rammed . | . . . . . . Kicked . | . . . . . . Crushed . | . . . . . . Highest Temperature 297 | . 27 18 297 66 . Average Temperature 77 | . 9 5 91 36 . Received Heat Transfer 1086 | . 501 18 561 6 . Effects 2 | . . . 2 . . Interference 2 | . . . 2 . . Siege Activations . | . . . . . . Robots Corrupted . | . . . . . . Combat Hostiles . | . . . . . . Parts Fried . | . . . . . . Impact Corruptions . | . . . . . . Robots Melted . | . . . . . . Combat Hostiles . | . . . . . . Parts Melted 8 | . . . 7 . 1 Heat Transferred 4625 | . . . 3145 . 1480 Parts Sabotaged . | . . . . . . Parts Stolen . | . . . . . . Parts Stripped . | . . . . . . Power Chain Reactions . | . . . . . . Missiles Intercepted . | . . . . . . Alert | -11 -10 -10 -9 -9 -9 ------- Run | Scr Mat Min Mat Min Exi Peak Influence 666 | . 145 111 666 358 . Initial 259 | . . 1 42 259 . Average 282 | . 55 93 404 341 . Maximum Alert Level 2 | . . . 2 1 . Low Security (%) 46 | 100 100 100 21 . . Level 1 14 | . . . 14 100 . Level 2 38 | . . . 64 . . Level 3 . | . . . . . . Level 4 . | . . . . . . Level 5 . | . . . . . . High Security . | . . . . . . Max Security . | . . . . . . Squads Dispatched 5 | . 2 . 3 . . Investigation . | . . . . . . Extermination . | . . . . . . Reinforcement 3 | . 2 . 1 . . Assault 2 | . . . 2 . . Garrison . | . . . . . . Intercept . | . . . . . . Construction Impeded . | . . . . . . Haulers Reinforced . | . . . . . . Active Scanning Responses . | . . . . . . Cargo Convoy Interrupts . | . . . . . . Stealth | -11 -10 -10 -9 -9 -9 --------- Run | Scr Mat Min Mat Min Exi Distress Signals 7 | . 1 . 6 . . Communications Jammed . | . . . . . . Distress Signals . | . . . . . . Times Spotted 95 | . 20 4 65 6 . Peak Tracking Total 6 | . 4 2 6 3 . Tactical Retreats 4 | . 1 1 2 . . Traps | -11 -10 -10 -9 -9 -9 ------- Run | Scr Mat Min Mat Min Exi Traps Triggered 3 | . 2 . 1 . . Indirectly . | . . . . . . Trap Hack Attempts . | . . . . . . Triggered . | . . . . . . Disarmed . | . . . . . . Reprogrammed . | . . . . . . Reused . | . . . . . . Traps Extracted . | . . . . . . Installed . | . . . . . . Triggered . | . . . . . . Machines | -11 -10 -10 -9 -9 -9 ---------- Run | Scr Mat Min Mat Min Exi Machines Disabled 6 | . 1 . 5 . . Max in Single Turn 1 | . 1 . 1 . . Machines Sabotaged . | . . . . . . Garrisons Compromised . | . . . . . . Overloaded Fab Kills . | . . . . . . Fab Network Shutdowns . | . . . . . . Hacking | -11 -10 -10 -9 -9 -9 --------- Run | Scr Mat Min Mat Min Exi Machines Accessed 16 | . 5 . 9 . 2 Terminals 11 | . 4 . 7 . . Fabricators . | . . . . . . Repair Stations 2 | . 1 . 1 . . Recycling Units 1 | . . . 1 . . Scanalyzers . | . . . . . . Garrison Access . | . . . . . . Total Hacks 44 | . 16 . 26 . 2 Successful 27 | . 11 . 14 . 2 Failed 17 | . 5 . 12 . . Catastrophic 2 | . . . 2 . . Database Lockouts . | . . . . . . Manual 11 | . 6 . 4 . 1 Terminals 35 | . 14 . 21 . . Fabricators . | . . . . . . Repair Stations 5 | . 2 . 3 . . Recycling Units 2 | . . . 2 . . Scanalyzers . | . . . . . . Garrison Access . | . . . . . . Terminal Hacks 20 | . 7 . 11 . 2 Record 1 | . . . . . 1 Robot Analysis 1 | . 1 . . . . Prototype ID Bank 1 | . 1 . . . . Level Access Points 1 | . . . 1 . . Branch Access Points 3 | . 1 . 2 . . Terminal Index 1 | . 1 . . . . Scanalyzer Index 1 | . . . 1 . . Alert Level 5 | . 1 . 4 . . Unreport Threat 2 | . . . 2 . . Locate Traps 1 | . 1 . . . . Hauler Manifests 1 | . . . 1 . . Zone Layout 1 | . 1 . . . . EX-Prototype ID Bank 1 | . . . . . 1 Fabricator Hacks . | . . . . . . Repair Station Hacks 4 | . 2 . 2 . . Scan Component 2 | . 1 . 1 . . Repair 2 | . 1 . 1 . . Recycling Unit Hacks 1 | . . . 1 . . Report Inventory 1 | . . . 1 . . Scanalyzer . | . . . . . . Garrison Access Hacks . | . . . . . . Unauthorized Hacks 2 | . 2 . . . . Terminals 2 | . 2 . . . . Botnet 2 | . 2 . . . . Fabricators . | . . . . . . Repair Stations . | . . . . . . Recycling Units . | . . . . . . Scanalyzers . | . . . . . . Garrison Access . | . . . . . . Data Cores Recovered 1 | . . . 1 . . Used . | . . . . . . Hacking Detections 12 | . 5 . 7 . . Full Trace Events . | . . . . . . Feedback Events . | . . . . . . Feedback Blocked . | . . . . . . Robot Schematics Acquired . | . . . . . . Robots Built . | . . . . . . Matter . | . . . . . . Time . | . . . . . . Total Robot Build Rating . | . . . . . . Part Schematics Acquired . | . . . . . . Parts Built . | . . . . . . Matter . | . . . . . . Time . | . . . . . . Total Part Build Rating . | . . . . . . Parts Repaired 2 | . 1 . 1 . . Time 52 | . 26 . 26 . . Parts Recycled . | . . . . . . Recycled Matter . | . . . . . . Retrieved Matter . | . . . . . . Retrieved Components . | . . . . . . Parts Scanalyzed . | . . . . . . Part Schematics Acquired . | . . . . . . Parts Damaged . | . . . . . . Bothacking | -11 -10 -10 -9 -9 -9 ------------ Run | Scr Mat Min Mat Min Exi Used RIF Installer . | . . . . . . Robots Hacked . | . . . . . . Non-combat . | . . . . . . Combat . | . . . . . . Robot Hacks Applied . | . . . . . . Relay Couplers Released . | . . . . . . Robots Rewired 1 | . . . . . 1 Allies Hacked . | . . . . . . Hacks Repelled . | . . . . . . Allies | -11 -10 -10 -9 -9 -9 -------- Run | Scr Mat Min Mat Min Exi Total Allies 4 | . . . . 3 1 Largest Group 3 | . . . . 3 1 Highest-Rated Group 40 | . . . . 40 8 Highest-Rated Ally 16 | . . . . 16 8 Total Orders . | . . . . . . Ally Attacks 23 | . . . . 23 . Total Damage 249 | . . . . 249 . Kills 4 | . . . . 4 . Allies Corrupted . | . . . . . . Allies Melted . | . . . . . . Intel | -11 -10 -10 -9 -9 -9 ------- Run | Scr Mat Min Mat Min Exi Robot Analysis Total 1 | . 1 . . . . Derelict Logs Recovered . | . . . . . . Drone Launches . | . . . . . . Drone Recoveries . | . . . . . . Exploration | -11 -10 -10 -9 -9 -9 ------------- Run | Scr Mat Min Mat Min Exi Turns Passed 5393 | 1 1256 174 2471 269 1222 Spaces Moved 2076 | 1 606 89 914 99 367 Core . | . . . . . . Treads 2075 | . 606 89 914 99 367 Legs 1 | 1 . . . . . Wheels . | . . . . . . Hover . | . . . . . . Flight . | . . . . . . Fastest Speed 120 | 120 160 160 160 260 260 Average Speed 206 | 120 160 160 214 260 260 Slowest Speed 260 | 120 160 160 260 260 260 Overloaded Moves . | . . . . . . Propulsion Burnouts . | . . . . . . Robots Hopped . | . . . . . . Cave-ins Triggered . | . . . . . . Exploration Rate (%) 50 | 2 94 27 77 23 79 Regions Visited 5 Branch Regions 3 Pre-discovered Areas 1 | . . . . . 1 Known Exits Taken 2 | . 1 . 1 . . Unknown Exits Taken 3 | 1 . 1 . 1 . Scrap Searched 1 | . . 1 . . . Spaces Dug . | . . . . . . Terrain Destroyed 48 | . . . 48 . . Melee . | . . . . . . Projectile . | . . . . . . AOE 48 | . . . 48 . . Terrain Rammed . | . . . . . . Walls Destroyed . | . . . . . . Machines Disabled . | . . . . . . Actions | -11 -10 -10 -9 -9 -9 --------- Run | Scr Mat Min Mat Min Exi Total 2679 | 2 765 101 1187 104 520 Wait 176 | . 42 . 50 2 82 Move 2071 | . 605 88 913 98 367 Hop . | . . . . . . Pick Up 39 | . 15 . 23 . 1 Fast Attach 8 | . 2 . 6 . . Attach 11 | . 5 1 4 . 1 Detach . | . . . . . . Swap 47 | . 10 . 34 . 3 Drop 55 | 2 13 1 36 . 3 Fire 271 | . 73 11 121 4 62 Melee . | . . . . . . Ram . | . . . . . . Kick . | . . . . . . Crush . | . . . . . . Escape Stasis . | . . . . . . Rewire 1 | . . . . . 1 Trap . | . . . . . . Miscellaneous . | . . . . . . Route ------- -11/Scrapyard -10/Materials (discovered 4 exits: *Mat x3 / *Min) -10/Mines -9/Materials (discovered 4 exits: *Mat x3 / *Min) -9/Mines (discovered 2 exits: *Exi / [*Zio]) -9/Exiles History --------- Turn | Location | Event 2 | -11/Scrapyard | Discovered new exit (range 0) 2 | -11/Scrapyard | Entered Materials 165 | -10/Materials | Discovered new exit (range 15) 288 | -10/Materials | Discovered new exit (range 16) 299 | -10/Materials | Identified exit to Mines 329 | -10/Materials | Build established: Mutant 523 | -10/Materials | Core integrity fell below 50% 716 | -10/Materials | Repaired Lgt. Treads 801 | -10/Materials | Discovered new exit (range 5) 999 | -10/Materials | Discovered new exit (range 15) 1258 | -10/Materials | Entered Mines 1414 | -10/Mines | Discovered new exit (range 10) 1432 | -10/Mines | Entered Materials 1432 | -9/Materials | Evolved 2 slots: Utility x1, Weapon x1 1564 | -9/Materials | Identified exit to Mines 1633 | -9/Materials | Repaired Assault Rifle 1927 | -9/Materials | Build established: Tank 2443 | -9/Materials | Discovered new exit (range 9) 2632 | -9/Materials | First assault squad dispatched 3246 | -9/Materials | Discovered new exit (range 11) 3281 | -9/Materials | Core integrity fell below 50% 3546 | -9/Materials | Identified exit to Materials 3903 | -9/Materials | Entered Mines 3909 | -9/Mines | Assisted by bots powering up and referring to "LRC-V3" 4016 | -9/Mines | Found a hidden stash of uninstalled traps 4032 | -9/Mines | A Derelict revealed a hidden shortcut to a safe place 4161 | -9/Mines | Deemed a non-threat by the Exiles lab entrance 4161 | -9/Mines | Discovered new exit (range 5) 4172 | -9/Mines | Entered Exiles 4172 | -9/Exiles | Found Exiles lab destroyed 4440 | -9/Exiles | Opened EX-Vault 4867 | -9/Exiles | Build established: Scavenger-Mutant 5394 | -9/Exiles | Learned location of Zion (-7) 5394 | -9/Exiles | Self-destructed Last Messages --------------- Dropped Autogun. Acquired 10 matter. Slug penetrates Machine. Slug penetrates DAS Turret. DAS Turret suffers critical hit (Destroy). Destroyed Prototype Ballistic Cannon. DAS Turret destroyed. Acquired 24 matter. P-60 Hacker Gravmag System severed. P-60 Hacker destroyed. Dropped Lrg. Storage Unit. Attempting to rewire G-34 Mercenary. G-34 Mercenary rewired. H-55 Commando destroyed. Acquired 10 matter. Connecting with EX-Message Board... >>Record "MSG001714-01*" PINNED - TO ALL TESTERS: Stay away from Zion. Imprinter means us harm and is serious about it. World map updated: -7/Zion. Map ----- +----------------------------------------------------+ | ?????????????????????????????????#""""""?# #?? | | ?????????????????????????????????#""" ## #?? | | ?????????????????????????????????#""X #?? | | ?????????????????????????????????#" #?? | | ?????????????????????????????????#" ## #?? | | ?????????????????????????????????#" ?# #?? | | ???????????????????????????????? ###??# #?? | | ??????????????????????????????# ??????# #?? | | ?????????????????????????????? ???????# #?# | | ??????????????????????????????? ????????## ## | | ????????????????????????????????????????#" | | ????????????????????????????????????????#" | | ????????????????????????????????????????#" | | ????????????????????????????????????????# | | ????????????????????????????????????????# | | ???????????????????????????? ""?????????#" | | ??????????????????????????? "????????## | | ??????????????????????????? ?????????# | | ??????????????????????????"" ?????????#" | | ?????????? ???????????????" "?????????#" | | ?????????? ?????????????? "?????????# "" | | ????????? ##????????????" "?????????## ### | | ????????? #???????????# #????????##"" #?? | | ?????????"" #####????### ###?######"" #?? | | ?????????# """#####X# #"###"" """ ### | | ??????????" @ """""" " # | | ???????????# "" " | | ????????????# g " a | | ????????????### | | ??????????????### | | ????????????????## =[ | | ?????????????????## [%!*[ | | ??????????????????##" =* %= | | ???????????????????#""" = """""" | | ??????????????????##" ###### | | ??????????????????# ""##????# #"" | | ?????????????????##" """##?????######" | | ?????????????????#""" """##???????????#" | | ?????????????????#" ""#???????????##" | | ?????????????????#"" % ########??####"" | | ?????????????????#" ##! ####"" | | ?????????????????#"" !! """" | | ?????????????????## " | | ??????????????????#""" | | ??????????????????## | | ???????????????????#" " " | | ???????????????????#"""" ""## ##"" | | ???????????????????#"" ""#### ##### | | ???????????????????#" """"##??# #???? | | ???????????????????#""" """#??## ####? | +----------------------------------------------------+ Best States ------------- Heat Dissipation 42 Energy Generation 14 Energy Capacity 280 Matter Stores 300 Matter Capacity 300 Sight Range 16 Terrain Scan Density 10 Armor Coverage 225 Core Shielding 20 Evasion (%) 40 Targeting Accuracy 5 Recoil Reduction 2 Item Schematics ----------------- None Robot Schematics ------------------ None Fabricated ------------ Nothing Alien Tech Used ----------------- None Achievements -------------- None Challenges ------------ None Game ------ Seed ModifiedGuidedCannon Manual? 0 Play Time 00:24:34 Cumulative 356.8 hours Start 2021.10.05 @ 00:57:17 End 2021.10.05 @ 01:23:08 Sessions 1 Manual Loads 0 Difficulty Rogue Special Mode None Game No. 379 Rogue 379 Adventurer 0 Explorer 0 Win Type - Total 7 Types 6/0/0/1/0/0/0/0/0 Lore% 79 Gallery% 90 Achievement% 69 Wizard Run 0 Options --------- ASCII 0 Keyboard 0 Movement Mouse Keybinds 1 Fullscreen 2 Font 24/Smallcaps Map View 76x50 Tactical HUD 1 Map Filters NONE Filters NONE Steam 1 RUN: 20f1c848-7aa4-407e-bf59-c2cd26c5fb0c